[Event "Late-Titled-Tuesday-Blitz-July-09-2024"]
[Site "Chess.com"]
[Date "2024.07.09"]
[Round "3"]
[White "Payyappat"]
[Black "Nbk90"]
[Result "1-0"]
[WhiteElo "2416"]
[BlackElo "2260"]
[TimeControl "180+1"]
[EndTime "14:28:21 PDT"]
[Termination "Payyappat won by checkmate"]

1. e4 {[%clk 0:03:00.9]} 1... e6 {[%clk 0:02:59.9]} 2. d4 {[%clk 0:02:57]} 2...
d5 {[%clk 0:02:59]} 3. Nc3 {[%clk 0:02:57.4]} 3... Bb4 {[%clk 0:02:58.2]} 4. e5
{[%clk 0:02:56.6]} 4... c5 {[%clk 0:02:57.9]} 5. a3 {[%clk 0:02:55.7]} 5...
Bxc3+ {[%clk 0:02:57.4]} 6. bxc3 {[%clk 0:02:56.6]} 6... Ne7 {[%clk 0:02:57.9]}
7. Qg4 {[%clk 0:02:56.2]} 7... O-O {[%clk 0:02:58.1]} 8. h4 {[%clk 0:02:51.2]}
8... Nbc6 {[%clk 0:02:57.3]} 9. Bd3 {[%clk 0:02:42.7]} 9... c4 {[%clk
0:02:49.4]} 10. Bf1 {[%clk 0:02:39.6]} 10... f5 {[%clk 0:02:48.9]} 11. Qf3
{[%clk 0:02:36.9]} 11... b5 {[%clk 0:02:44.7]} 12. Nh3 {[%clk 0:02:36.3]} 12...
a5 {[%clk 0:02:40.9]} 13. Bd2 {[%clk 0:02:27.2]} 13... Bd7 {[%clk 0:02:36.7]}
14. Ng5 {[%clk 0:02:26.1]} 14... b4 {[%clk 0:02:28.3]} 15. Be2 {[%clk
0:02:14.7]} 15... b3 {[%clk 0:02:22.4]} 16. cxb3 {[%clk 0:02:08.2]} 16... cxb3
{[%clk 0:02:23.3]} 17. Rb1 {[%clk 0:01:46.2]} 17... a4 {[%clk 0:02:22.1]} 18.
Bb5 {[%clk 0:01:44.7]} 18... Nxd4 {[%clk 0:02:03.3]} 19. cxd4 {[%clk 0:01:42.4]}
19... Bxb5 {[%clk 0:02:01.6]} 20. Nxe6 {[%clk 0:01:35.1]} 20... Qb6 {[%clk
0:02:01.7]} 21. Nxf8 {[%clk 0:01:30]} 21... Rxf8 {[%clk 0:02:02.2]} 22. Bb4
{[%clk 0:01:27.6]} 22... Rf7 {[%clk 0:01:51.6]} 23. Bxe7 {[%clk 0:01:24]} 23...
Rxe7 {[%clk 0:01:52.5]} 24. Qxd5+ {[%clk 0:01:22.9]} 24... Kf8 {[%clk
0:01:52.1]} 25. f4 {[%clk 0:01:05.5]} 25... Rd7 {[%clk 0:01:50.2]} 26. Qc5+
{[%clk 0:01:03.1]} 26... Qxc5 {[%clk 0:01:49.8]} 27. dxc5 {[%clk 0:01:04]} 27...
Rc7 {[%clk 0:01:46.9]} 28. Rc1 {[%clk 0:00:56.2]} 28... Bd3 {[%clk 0:01:43.1]}
29. Kd2 {[%clk 0:00:54.8]} 29... Be4 {[%clk 0:01:39.7]} 30. Ke3 {[%clk
0:00:20.6]} 30... b2 {[%clk 0:01:29.2]} 31. Rb1 {[%clk 0:00:20.7]} 31... Bxb1
{[%clk 0:01:26.6]} 32. Rxb1 {[%clk 0:00:21.6]} 32... Rxc5 {[%clk 0:01:26.2]} 33.
Rxb2 {[%clk 0:00:21.7]} 33... Rc3+ {[%clk 0:01:26.2]} 34. Kd4 {[%clk 0:00:22]}
34... Rxa3 {[%clk 0:01:26.4]} 35. Kd5 {[%clk 0:00:22.3]} 35... Kf7 {[%clk
0:01:22.9]} 36. h5 {[%clk 0:00:21.5]} 36... Rd3+ {[%clk 0:01:20.5]} 37. Kc4
{[%clk 0:00:21.1]} 37... Rd7 {[%clk 0:01:14]} 38. Ra2 {[%clk 0:00:19.4]} 38...
g6 {[%clk 0:01:14]} 39. h6 {[%clk 0:00:16.7]} 39... g5 {[%clk 0:01:13.8]} 40.
fxg5 {[%clk 0:00:13.2]} 40... Kg6 {[%clk 0:01:13.7]} 41. Rxa4 {[%clk 0:00:13.2]}
41... Re7 {[%clk 0:01:07.5]} 42. Kd5 {[%clk 0:00:12.9]} 42... Kxg5 {[%clk
0:01:07.2]} 43. Ra6 {[%clk 0:00:13.2]} 43... f4 {[%clk 0:01:05.9]} 44. Kd6
{[%clk 0:00:13.3]} 44... Re8 {[%clk 0:01:03.2]} 45. e6 {[%clk 0:00:13.1]} 45...
Kg4 {[%clk 0:01:02.4]} 46. Kd7 {[%clk 0:00:13.2]} 46... Rb8 {[%clk 0:01:02.6]}
47. e7 {[%clk 0:00:13.6]} 47... Kg3 {[%clk 0:01:01]} 48. e8=Q {[%clk 0:00:11.4]}
48... Rxe8 {[%clk 0:01:01.2]} 49. Kxe8 {[%clk 0:00:12.3]} 49... Kxg2 {[%clk
0:01:01.9]} 50. Ra7 {[%clk 0:00:11.9]} 50... f3 {[%clk 0:01:01.7]} 51. Rxh7
{[%clk 0:00:12.6]} 51... f2 {[%clk 0:01:01.6]} 52. Rf7 {[%clk 0:00:13.5]} 52...
f1=Q {[%clk 0:01:00.4]} 53. Rxf1 {[%clk 0:00:14.4]} 53... Kxf1 {[%clk
0:01:00.4]} 54. h7 {[%clk 0:00:15.3]} 54... Kg2 {[%clk 0:01:00.5]} 55. h8=Q
{[%clk 0:00:16.2]} 55... Kf2 {[%clk 0:01:01.4]} 56. Qd4+ {[%clk 0:00:17.1]}
56... Ke2 {[%clk 0:01:02.1]} 57. Ke7 {[%clk 0:00:18]} 57... Ke1 {[%clk
0:01:01.4]} 58. Ke6 {[%clk 0:00:18.9]} 58... Ke2 {[%clk 0:01:02.3]} 59. Ke5
{[%clk 0:00:19.8]} 59... Ke1 {[%clk 0:01:03.2]} 60. Ke4 {[%clk 0:00:20.1]} 60...
Kf1 {[%clk 0:01:04.1]} 61. Qb2 {[%clk 0:00:20.6]} 61... Kg1 {[%clk 0:01:03.7]}
62. Kf3 {[%clk 0:00:21.5]} 62... Kf1 {[%clk 0:01:03]} 63. Qf2# {[%clk
0:00:21.8]} 1-0

[Event "Late-Titled-Tuesday-Blitz-July-09-2024"]
[Site "Chess.com"]
[Date "2024.07.09"]
[Round "3"]
[White "1g60-1"]
[Black "krzyzan94"]
[Result "0-1"]
[WhiteElo "2470"]
[BlackElo "2750"]
[TimeControl "180+1"]
[EndTime "14:28:24 PDT"]
[Termination "krzyzan94 won by checkmate"]

1. e4 {[%clk 0:03:00.9]} 1... e5 {[%clk 0:02:58.9]} 2. Nf3 {[%clk 0:03:00.8]}
2... Nc6 {[%clk 0:02:59.2]} 3. Bb5 {[%clk 0:03:00.9]} 3... a6 {[%clk 0:02:58.9]}
4. Ba4 {[%clk 0:03:01.2]} 4... d6 {[%clk 0:02:59.3]} 5. c3 {[%clk 0:02:57.8]}
5... g6 {[%clk 0:02:57.9]} 6. O-O {[%clk 0:02:55.1]} 6... Bg7 {[%clk 0:02:57.6]}
7. h3 {[%clk 0:02:54.5]} 7... Bd7 {[%clk 0:02:58.2]} 8. Re1 {[%clk 0:02:53.7]}
8... Nf6 {[%clk 0:02:57.4]} 9. d4 {[%clk 0:02:51.9]} 9... b5 {[%clk 0:02:56.6]}
10. Bb3 {[%clk 0:02:47.2]} 10... O-O {[%clk 0:02:57.2]} 11. a3 {[%clk
0:02:41.9]} 11... Qe7 {[%clk 0:02:51.9]} 12. Nbd2 {[%clk 0:02:35.6]} 12... h6
{[%clk 0:02:37.5]} 13. Nf1 {[%clk 0:02:27.7]} 13... Na5 {[%clk 0:02:33.2]} 14.
Bc2 {[%clk 0:02:25.6]} 14... c5 {[%clk 0:02:32.9]} 15. Ng3 {[%clk 0:02:17.6]}
15... c4 {[%clk 0:02:17.5]} 16. d5 {[%clk 0:02:09.5]} 16... Nb7 {[%clk
0:02:15.3]} 17. Be3 {[%clk 0:02:06]} 17... Kh7 {[%clk 0:02:15.3]} 18. Nh2 {[%clk
0:02:02]} 18... Rac8 {[%clk 0:02:09]} 19. a4 {[%clk 0:01:58.4]} 19... Nc5 {[%clk
0:02:04.4]} 20. axb5 {[%clk 0:01:53.2]} 20... Bxb5 {[%clk 0:01:59.4]} 21. Bxc5
{[%clk 0:01:42.4]} 21... Rxc5 {[%clk 0:02:00.3]} 22. Ba4 {[%clk 0:01:39]} 22...
Rb8 {[%clk 0:01:56.9]} 23. Bxb5 {[%clk 0:01:35.1]} 23... Rcxb5 {[%clk
0:01:51.4]} 24. Rxa6 {[%clk 0:01:34.5]} 24... Rxb2 {[%clk 0:01:51.1]} 25. Nhf1
{[%clk 0:01:15.1]} 25... Nd7 {[%clk 0:01:36.1]} 26. Ra7 {[%clk 0:01:05.1]} 26...
Qf6 {[%clk 0:01:26]} 27. Re2 {[%clk 0:00:46.6]} 27... Rb1 {[%clk 0:01:20.9]} 28.
Qa4 {[%clk 0:00:37.8]} 28... Nc5 {[%clk 0:01:20.9]} 29. Qxc4 {[%clk 0:00:37.8]}
29... h5 {[%clk 0:01:21.5]} 30. Re3 {[%clk 0:00:23]} 30... Bh6 {[%clk
0:01:10.2]} 31. Rf3 {[%clk 0:00:22.9]} 31... Bf4 {[%clk 0:01:10.7]} 32. Ne2
{[%clk 0:00:08.8]} 32... Rxf1+ {[%clk 0:01:09.7]} 33. Kxf1 {[%clk 0:00:09.4]}
33... Rb1+ {[%clk 0:01:10.2]} 34. Nc1 {[%clk 0:00:09.9]} 34... Rxc1+ {[%clk
0:01:09.5]} 35. Ke2 {[%clk 0:00:10.4]} 35... Rc2+ {[%clk 0:00:53.9]} 36. Kf1
{[%clk 0:00:10.3]} 36... h4 {[%clk 0:00:41.3]} 37. g3 {[%clk 0:00:09.1]} 37...
hxg3 {[%clk 0:00:40.9]} 38. fxg3 {[%clk 0:00:10]} 38... g5 {[%clk 0:00:25.9]}
39. gxf4 {[%clk 0:00:09.3]} 39... gxf4 {[%clk 0:00:26]} 40. Qb5 {[%clk
0:00:07.3]} 40... Qg6 {[%clk 0:00:24.8]} 41. Rf2 {[%clk 0:00:05.8]} 41... Rxf2+
{[%clk 0:00:24.4]} 42. Kxf2 {[%clk 0:00:06.7]} 42... Nxe4+ {[%clk 0:00:25]} 43.
Kf3 {[%clk 0:00:04.9]} 43... Nxc3 {[%clk 0:00:20.2]} 44. Qe8 {[%clk 0:00:03.4]}
44... Qg3# {[%clk 0:00:20.5]} 0-1

[Event "Late-Titled-Tuesday-Blitz-July-09-2024"]
[Site "Chess.com"]
[Date "2024.07.09"]
[Round "3"]
[White "Arystanner"]
[Black "AmbartsumianTyhran2012"]
[Result "0-1"]
[WhiteElo "2893"]
[BlackElo "2585"]
[TimeControl "180+1"]
[EndTime "14:28:25 PDT"]
[Termination "AmbartsumianTyhran2012 won by checkmate"]

1. d4 {[%clk 0:02:55.7]} 1... d5 {[%clk 0:02:55.8]} 2. Nf3 {[%clk 0:02:55.2]}
2... Nf6 {[%clk 0:02:53]} 3. c4 {[%clk 0:02:55.2]} 3... e6 {[%clk 0:02:53.3]} 4.
Nc3 {[%clk 0:02:55.5]} 4... Nbd7 {[%clk 0:02:52.2]} 5. cxd5 {[%clk 0:02:51.7]}
5... exd5 {[%clk 0:02:51.9]} 6. Bg5 {[%clk 0:02:51]} 6... c6 {[%clk 0:02:49.8]}
7. Qc2 {[%clk 0:02:50.8]} 7... Be7 {[%clk 0:02:47.4]} 8. e3 {[%clk 0:02:50.2]}
8... O-O {[%clk 0:02:47.9]} 9. Bd3 {[%clk 0:02:50.1]} 9... h6 {[%clk 0:02:48.1]}
10. Bf4 {[%clk 0:02:50.4]} 10... Nh5 {[%clk 0:02:41.9]} 11. Be5 {[%clk
0:02:48.9]} 11... Nhf6 {[%clk 0:02:39]} 12. h3 {[%clk 0:02:48]} 12... Nxe5
{[%clk 0:02:38.5]} 13. Nxe5 {[%clk 0:02:48.2]} 13... Nd7 {[%clk 0:02:07.7]} 14.
f4 {[%clk 0:02:48.1]} 14... Bh4+ {[%clk 0:02:06.2]} 15. Kd1 {[%clk 0:02:48.2]}
15... Nxe5 {[%clk 0:02:02]} 16. fxe5 {[%clk 0:02:45.8]} 16... f6 {[%clk
0:02:00.6]} 17. g3 {[%clk 0:02:34.5]} 17... Bg5 {[%clk 0:01:49.5]} 18. exf6
{[%clk 0:02:29.3]} 18... Qxf6 {[%clk 0:01:43.9]} 19. Qe2 {[%clk 0:02:15.2]}
19... Qf2 {[%clk 0:01:34.6]} 20. Qxf2 {[%clk 0:01:53.2]} 20... Rxf2 {[%clk
0:01:35.5]} 21. Ke1 {[%clk 0:01:53.9]} 21... Rxb2 {[%clk 0:01:29.1]} 22. h4
{[%clk 0:01:49.9]} 22... Bxe3 {[%clk 0:01:14.6]} 23. Nd1 {[%clk 0:01:50]} 23...
Rd2 {[%clk 0:01:08.7]} 24. Be2 {[%clk 0:01:23.7]} 24... Bxd4 {[%clk 0:01:04.9]}
25. Kxd2 {[%clk 0:01:20.9]} 25... Bxa1 {[%clk 0:01:04.6]} 26. g4 {[%clk
0:01:17.8]} 26... Be5 {[%clk 0:00:58.9]} 27. Nf2 {[%clk 0:01:16.5]} 27... Bd7
{[%clk 0:00:57.9]} 28. Nd3 {[%clk 0:01:16.4]} 28... Bd6 {[%clk 0:00:58.2]} 29.
g5 {[%clk 0:01:16.2]} 29... hxg5 {[%clk 0:00:53.4]} 30. hxg5 {[%clk 0:01:16.5]}
30... Bf5 {[%clk 0:00:53.8]} 31. a4 {[%clk 0:01:12.2]} 31... b6 {[%clk
0:00:52.2]} 32. Rc1 {[%clk 0:01:10.5]} 32... c5 {[%clk 0:00:52.3]} 33. Bf3
{[%clk 0:01:10.3]} 33... Be4 {[%clk 0:00:52.6]} 34. Bg4 {[%clk 0:01:06.4]} 34...
c4 {[%clk 0:00:45.8]} 35. Rf1 {[%clk 0:00:42.6]} 35... cxd3 {[%clk 0:00:41.3]}
36. g6 {[%clk 0:00:33.1]} 36... Re8 {[%clk 0:00:35.6]} 37. Bh5 {[%clk
0:00:20.4]} 37... Bb4+ {[%clk 0:00:33.4]} 38. Kd1 {[%clk 0:00:20.9]} 38... d4
{[%clk 0:00:30.6]} 39. a5 {[%clk 0:00:19.8]} 39... Bd5 {[%clk 0:00:29.4]} 40.
Kc1 {[%clk 0:00:16.3]} 40... Bc3 {[%clk 0:00:28.6]} 41. axb6 {[%clk 0:00:15.9]}
41... axb6 {[%clk 0:00:28.6]} 42. Rf5 {[%clk 0:00:06.7]} 42... Re1+ {[%clk
0:00:26.9]} 43. Bd1 {[%clk 0:00:07.4]} 43... Rxd1+ {[%clk 0:00:25.2]} 44. Kxd1
{[%clk 0:00:05.5]} 44... Bb3+ {[%clk 0:00:26.1]} 45. Kc1 {[%clk 0:00:05.5]}
45... d2+ {[%clk 0:00:27]} 46. Kb1 {[%clk 0:00:04.9]} 46... d1=Q# {[%clk
0:00:27.9]} 0-1

[Event "Late-Titled-Tuesday-Blitz-July-09-2024"]
[Site "Chess.com"]
[Date "2024.07.09"]
[Round "3"]
[White "Queensandpawns"]
[Black "Slovak_fighter2000"]
[Result "0-1"]
[WhiteElo "2313"]
[BlackElo "2557"]
[TimeControl "180+1"]
[EndTime "14:28:28 PDT"]
[Termination "Slovak_fighter2000 won by checkmate"]

1. e4 {[%clk 0:03:00.9]} 1... c5 {[%clk 0:02:59.5]} 2. Nf3 {[%clk 0:02:59.3]}
2... d6 {[%clk 0:02:57.2]} 3. c3 {[%clk 0:02:58.9]} 3... Nf6 {[%clk 0:02:56.8]}
4. h3 {[%clk 0:02:57.7]} 4... Bd7 {[%clk 0:02:56.2]} 5. Bd3 {[%clk 0:02:56.3]}
5... e6 {[%clk 0:02:44.1]} 6. Qe2 {[%clk 0:02:54.8]} 6... Nc6 {[%clk 0:02:42.2]}
7. O-O {[%clk 0:02:54.5]} 7... Be7 {[%clk 0:02:41.9]} 8. Bc2 {[%clk 0:02:54.5]}
8... O-O {[%clk 0:02:41.2]} 9. d4 {[%clk 0:02:53.7]} 9... cxd4 {[%clk
0:02:42.1]} 10. cxd4 {[%clk 0:02:54]} 10... d5 {[%clk 0:02:42.2]} 11. e5 {[%clk
0:02:53.4]} 11... Ne4 {[%clk 0:02:42.7]} 12. Bxe4 {[%clk 0:02:38.4]} 12... dxe4
{[%clk 0:02:42.7]} 13. Qxe4 {[%clk 0:02:39.3]} 13... Nb4 {[%clk 0:02:39.1]} 14.
Nc3 {[%clk 0:02:33.2]} 14... Bc6 {[%clk 0:02:37.9]} 15. Qg4 {[%clk 0:02:26]}
15... Bxf3 {[%clk 0:02:20.7]} 16. gxf3 {[%clk 0:02:26.9]} 16... Kh8 {[%clk
0:02:15.9]} 17. Be3 {[%clk 0:02:24.3]} 17... Nd5 {[%clk 0:02:12.4]} 18. Kh1
{[%clk 0:02:19.2]} 18... Rc8 {[%clk 0:02:05.7]} 19. Rg1 {[%clk 0:02:17.7]} 19...
Rg8 {[%clk 0:02:02.3]} 20. Ne4 {[%clk 0:02:14.2]} 20... Rc2 {[%clk 0:01:54]} 21.
Bg5 {[%clk 0:02:03.5]} 21... h6 {[%clk 0:01:41.3]} 22. Qh5 {[%clk 0:01:39.7]}
22... Kh7 {[%clk 0:01:27.2]} 23. Qxf7 {[%clk 0:01:23.9]} 23... Qe8 {[%clk
0:01:20.2]} 24. Qxe6 {[%clk 0:01:08.7]} 24... Qh5 {[%clk 0:01:19.6]} 25. Bxe7
{[%clk 0:00:34]} 25... Qxf3+ {[%clk 0:01:12.3]} 26. Rg2 {[%clk 0:00:34.4]} 26...
Qxe4 {[%clk 0:01:09.4]} 27. Rg1 {[%clk 0:00:15.4]} 27... Rxf2 {[%clk 0:00:57.8]}
28. Bh4 {[%clk 0:00:05.7]} 28... Rxg2 {[%clk 0:00:56.8]} 29. Rxg2 {[%clk
0:00:05]} 29... Qxg2+ {[%clk 0:00:56.4]} 30. Kxg2 {[%clk 0:00:02.2]} 30... Nf4+
{[%clk 0:00:57.3]} 31. Kf3 {[%clk 0:00:02.2]} 31... Nxe6 {[%clk 0:00:58.2]} 32.
Ke4 {[%clk 0:00:03.1]} 32... Kg6 {[%clk 0:00:53.7]} 33. d5 {[%clk 0:00:02.8]}
33... Nc5+ {[%clk 0:00:54.1]} 34. Kd4 {[%clk 0:00:03.2]} 34... b6 {[%clk
0:00:54.3]} 35. d6 {[%clk 0:00:03.7]} 35... Kf5 {[%clk 0:00:52.7]} 36. Kd5
{[%clk 0:00:04.2]} 36... g5 {[%clk 0:00:51.5]} 37. Bf2 {[%clk 0:00:03.1]} 37...
Ne6 {[%clk 0:00:48.3]} 38. d7 {[%clk 0:00:01.6]} 38... h5 {[%clk 0:00:47.4]} 39.
Kd6 {[%clk 0:00:02.5]} 39... g4 {[%clk 0:00:47.2]} 40. hxg4+ {[%clk 0:00:02.7]}
40... hxg4 {[%clk 0:00:47.4]} 41. Bh4 {[%clk 0:00:03.6]} 41... g3 {[%clk
0:00:45.8]} 42. Bxg3 {[%clk 0:00:04.1]} 42... Rxg3 {[%clk 0:00:45.4]} 43. b4
{[%clk 0:00:05]} 43... Rd3+ {[%clk 0:00:43.9]} 44. Ke7 {[%clk 0:00:05.9]} 44...
Kxe5 {[%clk 0:00:42.8]} 45. b5 {[%clk 0:00:06.2]} 45... Rh3 {[%clk 0:00:33.8]}
46. a4 {[%clk 0:00:07.1]} 46... Rh7+ {[%clk 0:00:31.1]} 47. Ke8 {[%clk
0:00:07.8]} 47... Kd6 {[%clk 0:00:30.7]} 48. d8=Q+ {[%clk 0:00:08.4]} 48... Nxd8
{[%clk 0:00:30.5]} 49. a5 {[%clk 0:00:07.5]} 49... Rh8# {[%clk 0:00:30.2]} 0-1

[Event "Late-Titled-Tuesday-Blitz-July-09-2024"]
[Site "Chess.com"]
[Date "2024.07.09"]
[Round "3"]
[White "ArchibaldCerveza29"]
[Black "Keaton87"]
[Result "0-1"]
[WhiteElo "2423"]
[BlackElo "2651"]
[TimeControl "180+1"]
[EndTime "14:28:29 PDT"]
[Termination "Keaton87 won on time"]

1. e4 {[%clk 0:03:00.9]} 1... c5 {[%clk 0:02:59.2]} 2. Nf3 {[%clk 0:02:59.1]}
2... d6 {[%clk 0:02:59.4]} 3. d4 {[%clk 0:02:57.6]} 3... Nf6 {[%clk 0:02:59.6]}
4. Nc3 {[%clk 0:02:48.9]} 4... cxd4 {[%clk 0:02:59.7]} 5. Nxd4 {[%clk
0:02:49.8]} 5... g6 {[%clk 0:03:00.1]} 6. Be3 {[%clk 0:02:48.1]} 6... Bg7 {[%clk
0:03:00.4]} 7. f3 {[%clk 0:02:47.4]} 7... O-O {[%clk 0:03:00.3]} 8. Qd2 {[%clk
0:02:48]} 8... Nc6 {[%clk 0:03:00.5]} 9. O-O-O {[%clk 0:02:48.6]} 9... Nxd4
{[%clk 0:02:59.6]} 10. Bxd4 {[%clk 0:02:48.8]} 10... Be6 {[%clk 0:03:00.2]} 11.
Kb1 {[%clk 0:02:38]} 11... Qc7 {[%clk 0:03:00.2]} 12. h4 {[%clk 0:02:34.9]}
12... Rfc8 {[%clk 0:02:59.5]} 13. h5 {[%clk 0:02:33.6]} 13... Qa5 {[%clk
0:02:59.1]} 14. hxg6 {[%clk 0:02:32.5]} 14... fxg6 {[%clk 0:02:53.9]} 15. a3
{[%clk 0:02:30.3]} 15... Rab8 {[%clk 0:02:48.1]} 16. Bd3 {[%clk 0:02:27.5]}
16... Bf7 {[%clk 0:02:46.4]} 17. g4 {[%clk 0:02:20]} 17... b5 {[%clk 0:02:45.5]}
18. g5 {[%clk 0:02:18.5]} 18... Nh5 {[%clk 0:02:42.3]} 19. Bxg7 {[%clk
0:02:17.1]} 19... Kxg7 {[%clk 0:02:41.2]} 20. f4 {[%clk 0:01:57.7]} 20... b4
{[%clk 0:02:40.1]} 21. Nd5 {[%clk 0:01:19.6]} 21... Qa4 {[%clk 0:02:17.1]} 22.
axb4 {[%clk 0:01:02.9]} 22... e6 {[%clk 0:01:44.7]} 23. Nf6 {[%clk 0:00:48.2]}
23... e5 {[%clk 0:01:44.5]} 24. Nd5 {[%clk 0:00:46.4]} 24... Nxf4 {[%clk
0:01:22.3]} 25. Rdf1 {[%clk 0:00:28.7]} 25... Bxd5 {[%clk 0:01:19]} 26. exd5
{[%clk 0:00:25.8]} 26... Qxb4 {[%clk 0:01:19.2]} 27. Qxb4 {[%clk 0:00:11.7]}
27... Rxb4 {[%clk 0:01:20.1]} 28. c3 {[%clk 0:00:09.5]} 28... Rb7 {[%clk
0:01:15.3]} 29. Rf3 {[%clk 0:00:10.1]} 29... Rf8 {[%clk 0:01:08]} 30. Kc2 {[%clk
0:00:06.6]} 30... Nxd3 {[%clk 0:01:04.1]} 31. Rxf8 {[%clk 0:00:06.8]} 31... Nb4+
{[%clk 0:00:49.9]} 32. cxb4 {[%clk 0:00:07.1]} 32... Kxf8 {[%clk 0:00:50.5]} 33.
Rf1+ {[%clk 0:00:07.4]} 33... Kg7 {[%clk 0:00:50.4]} 34. Rf6 {[%clk 0:00:08]}
34... Rd7 {[%clk 0:00:47.8]} 35. Rf3 {[%clk 0:00:08.3]} 35... h6 {[%clk
0:00:47.3]} 36. gxh6+ {[%clk 0:00:08.5]} 36... Kxh6 {[%clk 0:00:48.2]} 37. Kc3
{[%clk 0:00:09]} 37... g5 {[%clk 0:00:47.9]} 38. Kc4 {[%clk 0:00:09.6]} 38...
Kh5 {[%clk 0:00:45.4]} 39. Kb5 {[%clk 0:00:09.3]} 39... g4 {[%clk 0:00:41.9]}
40. Rf6 {[%clk 0:00:07.1]} 40... g3 {[%clk 0:00:39.8]} 41. Kc6 {[%clk 0:00:02]}
41... g2 {[%clk 0:00:31.7]} 42. Kxd7 {[%clk 0:00:02.3]} 42... g1=Q {[%clk
0:00:31.8]} 43. Kxd6 {[%clk 0:00:02.8]} 43... e4 {[%clk 0:00:26.6]} 44. Re6
{[%clk 0:00:02.4]} 44... Qd4 {[%clk 0:00:24.2]} 45. Kc6 {[%clk 0:00:02.3]} 45...
Qc4+ {[%clk 0:00:23]} 0-1

[Event "Late-Titled-Tuesday-Blitz-July-09-2024"]
[Site "Chess.com"]
[Date "2024.07.09"]
[Round "3"]
[White "axlbvRR"]
[Black "Nemsko"]
[Result "1-0"]
[WhiteElo "1950"]
[BlackElo "2318"]
[TimeControl "180+1"]
[EndTime "14:28:29 PDT"]
[Termination "axlbvRR won by resignation"]

1. d4 {[%clk 0:02:59.8]} 1... Nf6 {[%clk 0:02:59]} 2. Nf3 {[%clk 0:02:59.9]}
2... e6 {[%clk 0:02:58.2]} 3. Bf4 {[%clk 0:03:00.5]} 3... d5 {[%clk 0:02:57.3]}
4. e3 {[%clk 0:03:00.9]} 4... Bd6 {[%clk 0:02:57.9]} 5. Bg3 {[%clk 0:03:00.9]}
5... c5 {[%clk 0:02:56.8]} 6. c3 {[%clk 0:03:00.6]} 6... Nc6 {[%clk 0:02:57.2]}
7. Bd3 {[%clk 0:03:00.5]} 7... Qe7 {[%clk 0:02:57.6]} 8. Ne5 {[%clk 0:02:59.9]}
8... Bd7 {[%clk 0:02:53.5]} 9. Nd2 {[%clk 0:02:55.6]} 9... c4 {[%clk 0:02:41.6]}
10. Bc2 {[%clk 0:02:53.5]} 10... O-O {[%clk 0:02:30.6]} 11. f4 {[%clk
0:02:52.4]} 11... h6 {[%clk 0:02:22.8]} 12. Bh4 {[%clk 0:02:51.2]} 12... Be8
{[%clk 0:02:05.9]} 13. O-O {[%clk 0:02:40.1]} 13... Qd8 {[%clk 0:01:59]} 14. Qf3
{[%clk 0:02:30.8]} 14... Be7 {[%clk 0:01:58.2]} 15. Bf2 {[%clk 0:02:15.5]} 15...
Nd7 {[%clk 0:01:52.2]} 16. e4 {[%clk 0:02:10]} 16... f6 {[%clk 0:01:42.2]} 17.
Ng4 {[%clk 0:02:02]} 17... dxe4 {[%clk 0:01:26.8]} 18. Qxe4 {[%clk 0:01:57.7]}
18... f5 {[%clk 0:00:50.2]} 19. Qxe6+ {[%clk 0:01:57]} 19... Rf7 {[%clk
0:00:40.9]} 20. Bxf5 {[%clk 0:01:23.1]} 20... Nf8 {[%clk 0:00:34.6]} 21. Qe4
{[%clk 0:01:17.5]} 21... Bd7 {[%clk 0:00:24]} 22. Bxd7 {[%clk 0:01:03.2]} 22...
Qxd7 {[%clk 0:00:20.9]} 23. Ne5 {[%clk 0:01:00.8]} 23... Nxe5 {[%clk 0:00:21.2]}
24. fxe5 {[%clk 0:01:00.5]} 24... Qf5 {[%clk 0:00:16.9]} 25. Qxb7 {[%clk
0:00:53]} 25... Rd8 {[%clk 0:00:11]} 26. Qe4 {[%clk 0:00:49.3]} 26... Qh5 {[%clk
0:00:09.3]} 27. Nf3 {[%clk 0:00:45.7]} 27... Ne6 {[%clk 0:00:07.5]} 28. d5
{[%clk 0:00:39.4]} 28... Ng5 {[%clk 0:00:04.1]} 29. Nxg5 {[%clk 0:00:38.1]}
29... Bxg5 {[%clk 0:00:05]} 30. Bg3 {[%clk 0:00:35.2]} 30... Rb7 {[%clk
0:00:02.9]} 31. Rab1 {[%clk 0:00:31.2]} 31... Qe8 {[%clk 0:00:02.1]} 32. e6
{[%clk 0:00:28.4]} 32... Qb5 {[%clk 0:00:02.5]} 33. d6 {[%clk 0:00:25.6]} 33...
Qb6+ {[%clk 0:00:02.2]} 34. Kh1 {[%clk 0:00:25.5]} 34... Rxd6 {[%clk 0:00:01.5]}
35. Bxd6 {[%clk 0:00:25]} 35... Qxd6 {[%clk 0:00:02.4]} 36. Rbd1 {[%clk
0:00:23.7]} 36... Qe7 {[%clk 0:00:02.4]} 37. Qxc4 {[%clk 0:00:20.9]} 37... Rxb2
{[%clk 0:00:02.3]} 38. Rd7 {[%clk 0:00:17]} 38... Qe8 {[%clk 0:00:02]} 39. e7+
{[%clk 0:00:15.5]} 39... Kh7 {[%clk 0:00:01]} 40. Qe4+ {[%clk 0:00:15.7]} 40...
Qg6 {[%clk 0:00:01.4]} 41. Qxg6+ {[%clk 0:00:15.3]} 41... Kxg6 {[%clk
0:00:02.3]} 42. e8=Q+ {[%clk 0:00:16.1]} 1-0